Cogmind - Beta 15 @@@ ROGUE MODE // 2025.10.14 @ 05:04:16 Player: NQH Result: Destroyed by G-34 Mercenary with Small Laser Performance ------------- Evolutions (1) 500 Regions Visited (2) 400 Robots Destroyed (1) 5 Value Destroyed (45) 45 Prototype IDs (0) 0 Alien Tech Used (0) 0 Bonus (200) 200 TOTAL SCORE: 1150 Bonus ------- Pacifist 200 Cogmind --------- Core Integrity 0/400 Matter 179/300 Energy 21/100 System Corruption 0% Temperature Cool (6) Movement Core (50) Location -9/Materials Parts ------- > --- POWER (1) -------- (None) > --- PROPULSION (2) --- (None) > --- UTILITY (4) ------ (None) > --- WEAPON (2) ------- (None) > --- INVENTORY (5) ---- Beam Rifle Mini Grenade Launcher Peak State ------------ > --- POWER ------------ (None) > --- PROPULSION ------- (None) > --- UTILITY ---------- Improved Signal Interpreter Improved Signal Interpreter Improved Signal Interpreter Improved Signal Interpreter > --- WEAPON ----------- Mace > --- INVENTORY -------- Beam Rifle Mini Grenade Launcher [Rating: 14] Favorites ----------- Power Ion Engine Engine Ion Engine Propulsion Compact Wheel Wheel Compact Wheel Utility Actuator Array Device Actuator Array Storage Small Storage Unit Processor Improved Signal Interpreter Weapon Mace Ballistic Gun Assault Rifle Impact Weapon Mace Build | -11 -10 -9 ------- Run | Yrd Mat Mat Slots Evolved 2 | . . 2 Power . | . . . Propulsion . | . . . Utility 2 | . . 2 Weapon . | . . . Parts Attached 13 | 6 . 7 Power 1 | 1 . . Engine 1 | 1 . . Core . | . . . Reactor . | . . . Propulsion 2 | 2 . . Treads . | . . . Leg . | . . . Wheel 2 | 2 . . Hover . | . . . Flight . | . . . Utility 7 | 1 . 6 Device 2 | . . 2 Storage 1 | 1 . . Processor 4 | . . 4 Hackware . | . . . Protection . | . . . Artifact . | . . . Weapon 3 | 2 . 1 Energy Gun . | . . . Energy Cannon . | . . . Ballistic Gun 2 | 2 . . Ballistic Cannon . | . . . Launcher . | . . . Special Weapon . | . . . Impact Weapon 1 | . . 1 Slashing Weapon . | . . . Piercing Weapon . | . . . Special Melee Weapon . | . . . Unidentified Prototypes . | . . . Parts Lost . | . . . Power . | . . . Propulsion . | . . . Utility . | . . . Weapon . | . . . Highest Loss Streak . | . . . To Critical Strikes . | . . . Average Backups . | . . 1 Power . | . . . Propulsion . | . . . Utility . | . . . Weapon . | . . 1 Tool/Special . | . . . Unused Backups 3 | . 1 2 Power 1 | . 1 . Propulsion . | . . . Utility . | . . . Weapon 2 | . . 2 Tool/Special . | . . . Average Slot Usage (%) 13 | . . 17 Device 5 | . . 7 Processor 3 | . . 4 Impact Weapon 4 | . . 5 Peak Build Rating 14 | 6 . 14 Average Rating 3 | 4 . 4 On Entrance . | . . . Naked Turns 104 | . 39 65 Heaviest Build 14 | 14 . 12 Greatest Support 26 | 26 3 3 Greatest Overweight (x) 3 | . . 3 Average Overweight (x) . | . . . Largest Inventory Capacity 8 | 8 5 5 Average Capacity 5 | 6 5 5 Most Carried 3 | 3 . 2 Average Carried 1 | . . 1 Final Capacity 5 | 5 5 5 Final Carried 2 | 1 . 2 Class Distribution -------------------- 100% | Mutant Dominant Class ---------------- Mutant | -10/Materials Mutant | -9/Materials Resources | -11 -10 -9 ----------- Run | Yrd Mat Mat Matter Collected 207 | 151 . 56 Remotely . | . . . Salvage Created 56 | . . 56 Parts 3 | . . 3 Haulers Intercepted . | . . . Recyclers Shooed . | . . . Parts Field Recycled . | . . . Retrieved Matter . | . . . Parts Self-Destructed . | . . . Prevented . | . . . Kills | -11 -10 -9 ------- Run | Yrd Mat Mat Combat Hostiles Destroyed 1 | . . 1 Melee 1 | . . 1 Classes Destroyed 1 | . . 1 Sentry 1 | . . 1 Best Kill Streak 1 | . . 1 Combat Bots Only 1 | . . 1 Max Kills in Single Turn 1 | . . 1 Gunslinging . | . . . Exploded . | . . . Melee 1 | . . 1 Uniques/NPCs Destroyed . | . . . Combat | -11 -10 -9 -------- Run | Yrd Mat Mat Hostile Shots Fired 75 | . 7 68 Missed 30 | . 4 26 Hits 45 | . 3 42 Projectile 45 | . 3 42 Damage Taken 594 | . 21 573 Core 426 | . 21 405 Absorbed by Shields . | . . . Core Remaining (%) 95 | 100 91 . Volleys Fired . | . . . Largest . | . . . Hottest . | . . . Shots Fired . | . . . Gun . | . . . Cannon . | . . . Launcher . | . . . Special . | . . . Kinetic . | . . . Thermal . | . . . Explosive . | . . . Electromagnetic . | . . . Robot Hit Streak . | . . . Robot Miss Streak . | . . . Penetration Max . | . . . Secondary Targets . | . . . Shots Hit Robots 10 | . . 10 Core Hits 2 | 1 . 1 Critical Kills . | . . . Critical Parts Destroyed 1 | . . 1 Critical Strikes 1 | . . 1 Smash 1 | . . 1 Melee Attacks 10 | . . 10 Impact 10 | . . 10 Slashing . | . . . Piercing . | . . . Sneak Attacks . | . . . Combat Hostiles . | . . . Follow-up Attacks . | . . . Damage Inflicted 225 | 1 . 224 Guns . | . . . Cannons . | . . . Explosions . | . . . Melee 224 | . . 224 Ramming 1 | 1 . . Kinetic . | . . . Thermal . | . . . Explosive . | . . . Electromagnetic . | . . . Impact 224 | . . 224 Slashing . | . . . Piercing . | . . . Highest Corruption . | . . . Average Corruption . | . . . Corruption Purged . | . . . Corruption Blocked . | . . . Overload Shots . | . . . Overflow Damage 34 | . . 34 Projectiles . | . . . Explosions . | . . . Melee 34 | . . 34 Knockbacks . | . . . Impact . | . . . Kinetic . | . . . Secondary . | . . . Self-Inflicted Damage . | . . . Shots . | . . . Rammed 1 | 1 . . Targets Rammed 1 | 1 . . Kicked . | . . . Crushed . | . . . Highest Temperature . | . . . Average Temperature . | . . . Received Heat Transfer 207 | . . 207 Siege Activations . | . . . Martial Activations . | . . . Shielding Activations . | . . . Robots Disrupted . | . . . Combat Hostiles . | . . . Robots Corrupted . | . . . Combat Hostiles . | . . . Parts Fried . | . . . Impact Corruptions 1 | . . 1 Robots Melted . | . . . Combat Hostiles . | . . . Parts Melted . | . . . Heat Transferred . | . . . Parts Sabotaged . | . . . Parts Stolen . | . . . Parts Stripped . | . . . Power Chain Reactions . | . . . Alert | -11 -10 -9 ------- Run | Yrd Mat Mat Maximum Alert Level . | . . . Low Security (%) 100 | 100 100 100 Level 1 . | . . . Level 2 . | . . . Level 3 . | . . . Level 4 . | . . . Level 5 . | . . . High Security . | . . . Max Security . | . . . Peak Influence 30 | . 30 30 Initial 12 | . . 12 Average 9 | . 8 13 Influence Increases 75 | . 30 45 Destroy 0b10 Robot/C 20 | . . 20 Destroy Leader 10 | . . 10 Partial Spotted 15 | . . 15 Lose Combat Pursuer 30 | . 30 . Influence Decreases 75 | . . 75 Entered New Map 18 | . . 18 Time Decay 57 | . . 57 Squads Dispatched 2 | . 1 1 Investigation . | . . . Extermination . | . . . Reinforcement 2 | . 1 1 Assault . | . . . Garrison . | . . . Intercept . | . . . Searches Triggered . | . . . Construction Impeded . | . . . Haulers Reinforced . | . . . Active Scanning Responses . | . . . Cargo Convoy Interrupts . | . . . Stealth | -11 -10 -9 --------- Run | Yrd Mat Mat Distress Signals 3 | . 1 2 Communications Jammed . | . . . Distress Signals . | . . . Times Spotted 14 | . 6 8 Peak Tracking Total 8 | . 4 8 Tactical Retreats 1 | . 1 . Traps | -11 -10 -9 ------- Run | Yrd Mat Mat Traps Triggered . | . . . Indirectly . | . . . Trap Hack Attempts . | . . . Triggered . | . . . Disarmed . | . . . Reprogrammed . | . . . Reused . | . . . Traps Extracted . | . . . Installed . | . . . Triggered . | . . . Machines | -11 -10 -9 ---------- Run | Yrd Mat Mat Machines Disabled . | . . . Max in Single Turn . | . . . Machines Repaired . | . . . Machines Dismantled . | . . . Machines Sabotaged . | . . . Overloaded Fab Kills . | . . . Hacking | -11 -10 -9 --------- Run | Yrd Mat Mat Machines Accessed . | . . . Terminals . | . . . Fabricators . | . . . Repair Stations . | . . . Recycling Units . | . . . Scanalyzers . | . . . Garrison Access . | . . . Total Hacks . | . . . Successful . | . . . Failed . | . . . Catastrophic . | . . . Database Lockouts . | . . . Manual . | . . . Terminals . | . . . Fabricators . | . . . Repair Stations . | . . . Recycling Units . | . . . Scanalyzers . | . . . Garrison Access . | . . . Terminal Hacks . | . . . Fabricator Hacks . | . . . Repair Station Hacks . | . . . Recycling Unit Hacks . | . . . Scanalyzer . | . . . Garrison Access Hacks . | . . . Unauthorized Hacks . | . . . Terminals . | . . . Fabricators . | . . . Repair Stations . | . . . Recycling Units . | . . . Scanalyzers . | . . . Garrison Access . | . . . Data Cores Recovered . | . . . Used . | . . . Hacking Detections . | . . . Full Trace Events . | . . . Feedback Events . | . . . Feedback Blocked . | . . . Robot Schematics Acquired . | . . . Robots Built . | . . . Authchips . | . . . Time . | . . . Total Robot Build Rating . | . . . Part Schematics Acquired . | . . . Parts Built . | . . . Authchips . | . . . Time . | . . . Total Part Build Rating . | . . . Parts Repaired . | . . . Time . | . . . Parts Recycled . | . . . Recycled Matter . | . . . Retrieved Matter . | . . . Retrieved Components . | . . . Parts Scanalyzed . | . . . Part Schematics Acquired . | . . . Parts Damaged . | . . . Bothacking | -11 -10 -9 ------------ Run | Yrd Mat Mat Used RIF Installer . | . . . Robots Hacked . | . . . Non-combat . | . . . Combat . | . . . Robot Hacks Applied . | . . . Relay Couplers Released . | . . . Fabnet Peak Effective % . | . . . Robots Rewired . | . . . Allies Hacked . | . . . Hacks Repelled . | . . . Allies | -11 -10 -9 -------- Run | Yrd Mat Mat Total Allies . | . . . Largest Group . | . . . Highest-Rated Group . | . . . Highest-Rated Ally . | . . . Total Orders . | . . . Ally Attacks . | . . . Total Damage . | . . . Kills . | . . . Allies Corrupted . | . . . Allies Melted . | . . . Intel | -11 -10 -9 ------- Run | Yrd Mat Mat Active Infowar (turns) . | . . . Robot Analysis Total . | . . . Derelict Logs Recovered . | . . . Drone Launches . | . . . Drone Recoveries . | . . . Exploration | -11 -10 -9 ------------- Run | Yrd Mat Mat Turns Passed 238 | 55 39 144 Spaces Moved 283 | 48 76 159 Core 236 | 1 76 159 Treads . | . . . Legs . | . . . Wheels 47 | 47 . . Hover . | . . . Flight . | . . . Fastest Speed 50 | 50 50 50 Average Speed 60 | 89 50 56 Slowest Speed 200 | 100 50 200 Overloaded Moves . | . . . Propulsion Burnouts . | . . . Robots Hopped . | . . . Potential Cave-ins . | . . . Cave-ins Triggered . | . . . Exploration Rate (%) 14 | 4 18 21 Regions Visited 2 Branch Regions . Pre-discovered Areas . | . . . Known Exits Taken . | . . . Unknown Exits Taken 2 | 1 1 . Scrap Searched . | . . . Spaces Dug . | . . . Terrain Destroyed . | . . . Melee . | . . . Projectile . | . . . AOE . | . . . Terrain Rammed . | . . . Walls Destroyed . | . . . Machines Disabled . | . . . Actions | -11 -10 -9 --------- Run | Yrd Mat Mat Total 327 | 57 76 194 Wait 12 | . . 12 Move 282 | 48 75 159 Hop . | . . . Pick Up 5 | 3 . 2 Fast Attach 11 | 4 . 7 Attach 2 | 2 . . Detach 4 | . . 4 Swap . | . . . Drop 1 | . 1 . Fire . | . . . Melee 10 | . . 10 Ram . | . . . Kick . | . . . Crush . | . . . Escape Stasis . | . . . Rewire . | . . . Trap . | . . . Miscellaneous . | . . . Route ------- -11/Scrapyard -10/Materials (discovered 2 exits: *Mat / [*Min]) -9/Materials History --------- Turn | Location | Event 10 | -11/Scrapyard | Discovered new exit (range 16) 56 | -11/Scrapyard | Released all parts (6) 56 | -11/Scrapyard | Entered Materials 86 | -10/Materials | Discovered new exit (range 13) 87 | -10/Materials | Discovered new exit (range 14) 95 | -10/Materials | Entered another Materials area 95 | -9/Materials | Evolved 2 slots: Utility x2 211 | -9/Materials | Core integrity fell below 50% 229 | -9/Materials | Core integrity fell below 20% 233 | -9/Materials | Released all parts (3) 239 | -9/Materials | Destroyed by G-34 Mercenary with Small Laser Last Messages --------------- effect. 00158_ O-16 Technician uses terminal to summon reinforcements. 00158_ ALERT: Hostiles spotted, dispatching reinforcements to Terminal M011. 00158_ O-16 Technician locks terminal. 00159_ Y-45 Defender destroyed. 00160_ K-01 Serf collects debris. 00161_ Acquired 56 matter. 00163_ Acquired Beam Rifle. 00163_ K-01 Serf collects debris. 00167_ Acquired Imp. Signal Interpreter. 00175_ R-06 Scavenger collects Lgt. Armor Plating. 00181_ Discarded Imp. Signal Interpreter. 00183_ Acquired Actuator Array. 00224_ W-16 Scout sends out distress signal. 00233_ Released Actuator Array. 00233_ Released Mace. 00233_ Released Actuator Array. 00235_ W-16 Scout sends out distress signal. Map ----- +----------------------------------------------------+ | ??????????????????????????????????? | | ??????????????????????????????????? | | ??????????????????????????????????? | | #####?????????????????????????????? | | #?????????????????????????????? | | = #?????????????????????????????? | | #?????????????????????????????? | | #?????????????????????????????? | | #?????????????????????????????? | | #?????????????????????????????? | | #####?????????????????????????????? | | #####??????????????????????? #????? | | # +?????????????????????? #????? | | # #?????????????????????? #????? | | # #####+#########???????? #????? | | # #???????? #????? | | + #???????? #????? | | # #??????? #????? | | ## ###### ##### #??????? #????? | | ## #????# #???# #??????? #????? | | ## ######+##### #??????? #????? | | ## ##[! ## ##?????? #????? | | ?# ##[! # ###+### #????? | | ?# ## # Y g #????? | | ?# ## + !/ o #????? | | ?? ?# # g @ #????? | | ?? ?# # g # ####????? | | ?? ?# ## ## #???????? | | ?? ?# ## ## ! !!#???????? | | ?? ?# [ ## T# ! !!#???????? | | ?? ?########### #########???????? | | ?? ???????????# #???????????????? | | ??????????????# #???????????????? | | ??????????????# #???????????????? | | ?????????????? ???????????????? | | ?????????????? ???????????????? | | ?????????????# #??????????????? | | ?????????????# #??????????????? | | ?????????????# #??????????????? | | ?????????????## ##??????????????? | | ??????????????# ????????????????? | | ??????????????? ????????????????? | | ??????????????????????????????????? | | ??????????????????????????????????? | | ??????????????????????????????????? | | ??????????????????????????????????? | | ??????????????????????????????????? | | ??????????????????????????????????? | | ??????????????????????????????????? | | ??????????????????????????????????? | +----------------------------------------------------+ Best States ------------- Heat Dissipation 28 Energy Generation 10 Energy Capacity 250 Matter Stores 219 Matter Capacity 300 Sight Range 16 Terrain Scan Density 10 Evasion (%) 50 Item Schematics ----------------- None Robot Schematics ------------------ None Fabricated ------------ Nothing Repaired ---------- Nothing Alien Tech Used ----------------- None Achievements -------------- None Challenges ------------ None Game ------ Seed ConstructGravityFacilitator Manual? 0 Play Time 00:03:17 Cumulative 33.0 hours Start 2025.10.14 @ 05:02:18 End 2025.10.14 @ 05:04:16 Sessions 1 Manual Loads 0 Difficulty Rogue Special Mode None Game No. 135 Rogue 135 Adventurer 0 Explorer 0 Win Type - Total 0 Types 0/0/0/0/0/0/0/0/0/0 Lore% 11 Gallery% 31 Achievement% 28 Wizard Run 0 Options --------- Layout 1 ASCII 0 Keyboard 1 Movement Vi Keybinds 0 Fullscreen 1 Font 16/SmallcapsGlow Map View 55x38 Zoom Use 0% Tactical HUD 1 Map Filters NONE Filters NONE Steam 1 RUN: a670d003-1f70-4ca2-b136-6c37dc05b91f